[Event "Late-Titled-Tuesday-Blitz-March-05-2024"]
[Site "Chess.com"]
[Date "2024.03.05"]
[Round "3"]
[White "TenisMaster"]
[Black "GothamChess"]
[Result "1-0"]
[WhiteElo "2885"]
[BlackElo "2671"]
[TimeControl "180+1"]
[EndTime "14:28:27 PST"]
[Termination "TenisMaster won on time"]

1. e4 {[%clk 0:03:00.9]} 1... d5 {[%clk 0:02:57.3]} 2. exd5 {[%clk 0:03:00.6]}
2... Qxd5 {[%clk 0:02:58.2]} 3. Nc3 {[%clk 0:03:00.7]} 3... Qa5 {[%clk
0:02:58.7]} 4. d4 {[%clk 0:03:00.8]} 4... Nf6 {[%clk 0:02:59.3]} 5. Nf3 {[%clk
0:02:57.4]} 5... Bf5 {[%clk 0:02:58.9]} 6. Bd2 {[%clk 0:02:55.4]} 6... e6 {[%clk
0:02:57.1]} 7. Ne5 {[%clk 0:02:55.3]} 7... Qb6 {[%clk 0:02:50.9]} 8. Qf3 {[%clk
0:02:54.7]} 8... Nbd7 {[%clk 0:02:25.2]} 9. O-O-O {[%clk 0:02:45.8]} 9... c6
{[%clk 0:01:55.5]} 10. Qg3 {[%clk 0:01:49.3]} 10... Bg6 {[%clk 0:01:35.9]} 11.
h4 {[%clk 0:01:40.3]} 11... Bd6 {[%clk 0:01:17.9]} 12. f4 {[%clk 0:01:18.4]}
12... O-O-O {[%clk 0:00:37.3]} 13. Be2 {[%clk 0:01:12.4]} 13... Rhg8 {[%clk
0:00:15]} 14. h5 {[%clk 0:01:09.7]} 14... Be4 {[%clk 0:00:12.8]} 15. Nxf7 {[%clk
0:01:08.2]} 15... Bc7 {[%clk 0:00:08.6]} 16. Nxd8 {[%clk 0:01:05.7]} 16... Rxd8
{[%clk 0:00:09]} 17. Rhe1 {[%clk 0:01:02.2]} 17... Bf5 {[%clk 0:00:06.7]} 18.
Bc4 {[%clk 0:00:49.4]} 18... Re8 {[%clk 0:00:03.6]} 19. Be3 {[%clk 0:00:42.2]}
19... Nxh5 {[%clk 0:00:03.4]} 20. Qf3 {[%clk 0:00:41.8]} 20... Nhf6 {[%clk
0:00:03.5]} 21. d5 {[%clk 0:00:40.8]} 21... Qb4 {[%clk 0:00:02.6]} 22. dxe6
{[%clk 0:00:40.7]} 22... Qxc4 {[%clk 0:00:02.3]} 23. exd7+ {[%clk 0:00:40.9]}
23... Bxd7 {[%clk 0:00:02.6]} 24. Bd2 {[%clk 0:00:37.2]} 24... Rd8 {[%clk
0:00:02.3]} 25. Qe2 {[%clk 0:00:34.2]} 25... Qb4 {[%clk 0:00:01.9]} 26. Nd5
{[%clk 0:00:31.4]} 26... Qa4 {[%clk 0:00:02]} 27. Nc3 {[%clk 0:00:21.3]} 27...
Qb4 {[%clk 0:00:02.4]} 28. a3 {[%clk 0:00:20.8]} 28... Qa5 {[%clk 0:00:02.4]}
29. Qc4 {[%clk 0:00:19.2]} 29... Nd5 {[%clk 0:00:01.4]} 30. Nxd5 {[%clk
0:00:19]} 30... Qxd5 {[%clk 0:00:01.5]} 31. Qxd5 {[%clk 0:00:19.3]} 31... cxd5
{[%clk 0:00:02.4]} 32. Re7 {[%clk 0:00:19.2]} 32... Bg4 {[%clk 0:00:02.5]} 33.
Rde1 {[%clk 0:00:18.9]} 33... Rd7 {[%clk 0:00:02.5]} 34. Re8+ {[%clk 0:00:17.8]}
34... Rd8 {[%clk 0:00:03]} 35. Bb4 {[%clk 0:00:17.6]} 35... b6 {[%clk
0:00:02.7]} 36. g3 {[%clk 0:00:17.4]} 36... Bf5 {[%clk 0:00:02.8]} 37. R1e7
{[%clk 0:00:15.1]} 37... Bg6 {[%clk 0:00:02.6]} 38. Rxd8+ {[%clk 0:00:15.1]}
38... Kxd8 {[%clk 0:00:02.9]} 39. Rxg7 {[%clk 0:00:15.2]} 39... a5 {[%clk
0:00:03]} 40. Be7+ {[%clk 0:00:14.5]} 40... Ke8 {[%clk 0:00:02.8]} 41. Bf6
{[%clk 0:00:13.3]} 41... Bd6 {[%clk 0:00:03]} 42. Bd4 {[%clk 0:00:12.4]} 42...
b5 {[%clk 0:00:02.9]} 43. Rb7 {[%clk 0:00:12.5]} 43... b4 {[%clk 0:00:03.2]} 44.
a4 {[%clk 0:00:12.1]} 44... Be4 {[%clk 0:00:02.9]} 45. Ra7 {[%clk 0:00:11]} 1-0

[Event "Late-Titled-Tuesday-Blitz-March-05-2024"]
[Site "Chess.com"]
[Date "2024.03.05"]
[Round "3"]
[White "rychessmaster1"]
[Black "Antipov_Mikhail_Al"]
[Result "1-0"]
[WhiteElo "2719"]
[BlackElo "2935"]
[TimeControl "180+1"]
[EndTime "14:28:28 PST"]
[Termination "rychessmaster1 won on time"]

1. d4 {[%clk 0:03:00.9]} 1... Nf6 {[%clk 0:02:53.7]} 2. c4 {[%clk 0:03:00]} 2...
e6 {[%clk 0:02:50.5]} 3. Nf3 {[%clk 0:02:58.8]} 3... d5 {[%clk 0:02:47.4]} 4.
Nc3 {[%clk 0:02:58]} 4... Bb4 {[%clk 0:02:47.5]} 5. e3 {[%clk 0:02:57]} 5... O-O
{[%clk 0:02:47]} 6. Bd2 {[%clk 0:02:56.9]} 6... Be7 {[%clk 0:02:45.8]} 7. Rc1
{[%clk 0:02:51.6]} 7... Nbd7 {[%clk 0:02:36.2]} 8. cxd5 {[%clk 0:02:46.6]} 8...
exd5 {[%clk 0:02:36.4]} 9. Bd3 {[%clk 0:02:46.5]} 9... c6 {[%clk 0:02:36.3]} 10.
O-O {[%clk 0:02:31.2]} 10... Bd6 {[%clk 0:02:36.1]} 11. Ne2 {[%clk 0:02:31]}
11... Re8 {[%clk 0:02:33]} 12. Qb3 {[%clk 0:02:24.7]} 12... Ne4 {[%clk
0:02:25.6]} 13. Bb4 {[%clk 0:02:24.7]} 13... Bc7 {[%clk 0:02:18.9]} 14. Qc2
{[%clk 0:02:17.1]} 14... Ndf6 {[%clk 0:02:14.6]} 15. Ng3 {[%clk 0:02:12.5]}
15... Bd7 {[%clk 0:01:30.6]} 16. Nd2 {[%clk 0:01:46]} 16... Nxg3 {[%clk
0:01:03.5]} 17. hxg3 {[%clk 0:01:46.9]} 17... g6 {[%clk 0:01:00.7]} 18. Rfe1
{[%clk 0:01:21.8]} 18... Rc8 {[%clk 0:00:50.1]} 19. Nf3 {[%clk 0:00:47.6]} 19...
Bb8 {[%clk 0:00:47.1]} 20. Bc3 {[%clk 0:00:44.9]} 20... Ne4 {[%clk 0:00:40.8]}
21. Ne5 {[%clk 0:00:40.3]} 21... Nxc3 {[%clk 0:00:37.7]} 22. Qxc3 {[%clk
0:00:40.6]} 22... Be6 {[%clk 0:00:32.2]} 23. f4 {[%clk 0:00:38.6]} 23... f6
{[%clk 0:00:27.7]} 24. Nf3 {[%clk 0:00:37.8]} 24... Qd7 {[%clk 0:00:27.6]} 25.
b4 {[%clk 0:00:33.6]} 25... a6 {[%clk 0:00:19]} 26. a4 {[%clk 0:00:33.5]} 26...
Bf5 {[%clk 0:00:12.7]} 27. Kf2 {[%clk 0:00:25.9]} 27... Rc7 {[%clk 0:00:10.9]}
28. Nd2 {[%clk 0:00:24.4]} 28... Bxd3 {[%clk 0:00:06.2]} 29. Qxd3 {[%clk
0:00:25.3]} 29... Qd6 {[%clk 0:00:06.8]} 30. b5 {[%clk 0:00:24.3]} 30... axb5
{[%clk 0:00:02.6]} 31. axb5 {[%clk 0:00:24.7]} 31... c5 {[%clk 0:00:02.5]} 32.
dxc5 {[%clk 0:00:23.5]} 32... Rxc5 {[%clk 0:00:03.4]} 33. Nb3 {[%clk 0:00:22.8]}
33... Rxc1 {[%clk 0:00:03.1]} 34. Rxc1 {[%clk 0:00:23.7]} 34... Ba7 {[%clk
0:00:03.7]} 35. Nd4 {[%clk 0:00:23.5]} 35... Kg7 {[%clk 0:00:03.1]} 36. Qc3
{[%clk 0:00:21.8]} 36... Bb6 {[%clk 0:00:03.1]} 37. Rd1 {[%clk 0:00:18.1]} 37...
Re7 {[%clk 0:00:03]} 38. Nc2 {[%clk 0:00:17.4]} 38... Rc7 {[%clk 0:00:02.7]} 39.
Qd3 {[%clk 0:00:18]} 39... Qc5 {[%clk 0:00:02.8]} 40. Nd4 {[%clk 0:00:17.4]}
40... Re7 {[%clk 0:00:03.2]} 41. Kg1 {[%clk 0:00:16.1]} 41... Kf7 {[%clk
0:00:02.8]} 42. Kh2 {[%clk 0:00:16.4]} 42... Qc4 {[%clk 0:00:02.4]} 43. Qa3
{[%clk 0:00:15]} 43... Bc5 {[%clk 0:00:01.3]} 44. Qa8 {[%clk 0:00:14.7]} 44...
Bb6 {[%clk 0:00:01.4]} 45. Qa3 {[%clk 0:00:14.4]} 45... Re8 {[%clk 0:00:01.2]}
46. Rc1 {[%clk 0:00:12.1]} 1-0

[Event "Late-Titled-Tuesday-Blitz-March-05-2024"]
[Site "Chess.com"]
[Date "2024.03.05"]
[Round "3"]
[White "Ykow"]
[Black "NikolaGry"]
[Result "1-0"]
[WhiteElo "2520"]
[BlackElo "2701"]
[TimeControl "180+1"]
[EndTime "14:28:32 PST"]
[Termination "Ykow won on time"]

1. e4 {[%clk 0:03:00.9]} 1... d5 {[%clk 0:02:59.4]} 2. exd5 {[%clk 0:03:00.6]}
2... Nf6 {[%clk 0:03:00]} 3. Nf3 {[%clk 0:03:01.2]} 3... Nxd5 {[%clk 0:02:59]}
4. d4 {[%clk 0:03:01.1]} 4... g6 {[%clk 0:02:57.9]} 5. c4 {[%clk 0:03:00.6]}
5... Nb6 {[%clk 0:02:57.9]} 6. Nc3 {[%clk 0:03:00.3]} 6... Bg7 {[%clk
0:02:57.8]} 7. h3 {[%clk 0:03:00.8]} 7... O-O {[%clk 0:02:57.1]} 8. Be3 {[%clk
0:03:01.5]} 8... Nc6 {[%clk 0:02:55.7]} 9. Be2 {[%clk 0:02:59.1]} 9... e5 {[%clk
0:02:55.3]} 10. d5 {[%clk 0:02:58.4]} 10... Ne7 {[%clk 0:02:55.4]} 11. O-O
{[%clk 0:02:57]} 11... Nf5 {[%clk 0:02:55.2]} 12. Bc5 {[%clk 0:02:57.1]} 12...
Re8 {[%clk 0:02:54.7]} 13. Bd3 {[%clk 0:02:49.6]} 13... Nd6 {[%clk 0:02:51.5]}
14. Nd2 {[%clk 0:02:44.9]} 14... f5 {[%clk 0:02:46.6]} 15. Re1 {[%clk
0:02:38.9]} 15... e4 {[%clk 0:02:40.1]} 16. Bf1 {[%clk 0:02:38.9]} 16... Nd7
{[%clk 0:02:38.3]} 17. Ba3 {[%clk 0:02:37.7]} 17... b6 {[%clk 0:02:37.5]} 18.
Rc1 {[%clk 0:02:37.2]} 18... a5 {[%clk 0:02:36.9]} 19. Nb3 {[%clk 0:02:35.3]}
19... Qf6 {[%clk 0:02:06.8]} 20. Nb5 {[%clk 0:02:28]} 20... Nxb5 {[%clk
0:02:02.2]} 21. cxb5 {[%clk 0:02:28.9]} 21... a4 {[%clk 0:01:30.6]} 22. Nd2
{[%clk 0:02:27.1]} 22... Nc5 {[%clk 0:01:28.1]} 23. Nc4 {[%clk 0:02:19.2]} 23...
Bb7 {[%clk 0:01:14.7]} 24. d6 {[%clk 0:02:05.1]} 24... Rad8 {[%clk 0:01:11.9]}
25. Qc2 {[%clk 0:02:04.2]} 25... Rxd6 {[%clk 0:00:54.1]} 26. Nxd6 {[%clk
0:01:59.5]} 26... cxd6 {[%clk 0:00:53.9]} 27. Rcd1 {[%clk 0:01:55.6]} 27... f4
{[%clk 0:00:39.2]} 28. Bc4+ {[%clk 0:01:47.8]} 28... Kh8 {[%clk 0:00:36.7]} 29.
Bd5 {[%clk 0:01:48.2]} 29... Bxd5 {[%clk 0:00:33.2]} 30. Rxd5 {[%clk 0:01:49.1]}
30... e3 {[%clk 0:00:33.4]} 31. b4 {[%clk 0:00:45]} 31... axb3 {[%clk
0:00:30.3]} 32. axb3 {[%clk 0:00:44.9]} 32... Qe6 {[%clk 0:00:28.8]} 33. Rdd1
{[%clk 0:00:44.8]} 33... Bh6 {[%clk 0:00:20.2]} 34. b4 {[%clk 0:00:40.1]} 34...
Ne4 {[%clk 0:00:18.1]} 35. fxe3 {[%clk 0:00:38.6]} 35... fxe3 {[%clk 0:00:17.4]}
36. Bc1 {[%clk 0:00:36.3]} 36... Ng3 {[%clk 0:00:15]} 37. Qc3+ {[%clk
0:00:20.8]} 37... Bg7 {[%clk 0:00:10.3]} 38. Qd3 {[%clk 0:00:21.7]} 38... Nf5
{[%clk 0:00:09.5]} 39. Re2 {[%clk 0:00:20.3]} 39... d5 {[%clk 0:00:09]} 40. Qxd5
{[%clk 0:00:20.1]} 40... Qe7 {[%clk 0:00:08.6]} 41. g4 {[%clk 0:00:17.9]} 41...
Nd4 {[%clk 0:00:04.5]} 42. Rxd4 {[%clk 0:00:16.9]} 42... Rc8 {[%clk 0:00:02.2]}
43. Bxe3 {[%clk 0:00:14.3]} 43... Qc7 {[%clk 0:00:02.2]} 44. Kg2 {[%clk
0:00:13.4]} 1-0

[Event "Late-Titled-Tuesday-Blitz-March-05-2024"]
[Site "Chess.com"]
[Date "2024.03.05"]
[Round "3"]
[White "Zadar321"]
[Black "secretworker2027"]
[Result "0-1"]
[WhiteElo "2481"]
[BlackElo "2658"]
[TimeControl "180+1"]
[EndTime "14:28:32 PST"]
[Termination "secretworker2027 won on time"]

1. e4 {[%clk 0:02:58.8]} 1... c5 {[%clk 0:02:54.5]} 2. Nf3 {[%clk 0:02:53.4]}
2... Nc6 {[%clk 0:02:54.5]} 3. d4 {[%clk 0:02:49.3]} 3... cxd4 {[%clk
0:02:55.4]} 4. Nxd4 {[%clk 0:02:47.9]} 4... e5 {[%clk 0:02:56]} 5. Nb5 {[%clk
0:02:46.3]} 5... d6 {[%clk 0:02:56.3]} 6. N1c3 {[%clk 0:02:38.6]} 6... a6 {[%clk
0:02:56]} 7. Na3 {[%clk 0:02:36.8]} 7... b5 {[%clk 0:02:56.5]} 8. Nd5 {[%clk
0:02:37.2]} 8... Nge7 {[%clk 0:02:57.2]} 9. c4 {[%clk 0:02:29.4]} 9... Nd4
{[%clk 0:02:56.7]} 10. Be3 {[%clk 0:02:26.4]} 10... Nxd5 {[%clk 0:02:56.4]} 11.
cxd5 {[%clk 0:02:22.2]} 11... f5 {[%clk 0:02:56.5]} 12. Bd3 {[%clk 0:02:08.7]}
12... Qa5+ {[%clk 0:02:42.6]} 13. Bd2 {[%clk 0:02:03.8]} 13... Qb6 {[%clk
0:02:42.5]} 14. Nc2 {[%clk 0:01:50.6]} 14... f4 {[%clk 0:02:37.6]} 15. Nxd4
{[%clk 0:01:44.2]} 15... Qxd4 {[%clk 0:02:37.4]} 16. Bxf4 {[%clk 0:01:37.3]}
16... Qxb2 {[%clk 0:02:27.6]} 17. Be3 {[%clk 0:01:30.9]} 17... Qc3+ {[%clk
0:02:25.5]} 18. Ke2 {[%clk 0:01:27.4]} 18... Be7 {[%clk 0:02:22.6]} 19. Qb3
{[%clk 0:01:19.2]} 19... Qa5 {[%clk 0:02:18.1]} 20. a4 {[%clk 0:01:16.3]} 20...
b4 {[%clk 0:02:15.8]} 21. Rhc1 {[%clk 0:01:10.5]} 21... O-O {[%clk 0:02:14.7]}
22. f3 {[%clk 0:01:04.2]} 22... Qd8 {[%clk 0:02:06.9]} 23. Qxb4 {[%clk
0:01:00.9]} 23... Bg5 {[%clk 0:02:06.7]} 24. a5 {[%clk 0:00:54.8]} 24... Bxe3
{[%clk 0:02:06.3]} 25. Kxe3 {[%clk 0:00:52.5]} 25... Qh4 {[%clk 0:02:02.7]} 26.
Be2 {[%clk 0:00:46.2]} 26... Qxh2 {[%clk 0:01:53.9]} 27. Qxd6 {[%clk 0:00:43.6]}
27... Qxg2 {[%clk 0:01:17.4]} 28. Qxe5 {[%clk 0:00:40.5]} 28... Bg4 {[%clk
0:01:11.8]} 29. fxg4 {[%clk 0:00:36.3]} 29... Rae8 {[%clk 0:01:10.5]} 30. Qd4
{[%clk 0:00:32.8]} 30... Rf2 {[%clk 0:00:59.1]} 31. Re1 {[%clk 0:00:32.1]} 31...
Ref8 {[%clk 0:00:51.2]} 32. d6 {[%clk 0:00:28.8]} 32... Qh2 {[%clk 0:00:27.4]}
33. d7 {[%clk 0:00:25.5]} 33... Qf4+ {[%clk 0:00:26.6]} 34. Kd3 {[%clk
0:00:22.6]} 34... Qg3+ {[%clk 0:00:27]} 35. Kd2 {[%clk 0:00:16.5]} 35... Qf4+
{[%clk 0:00:26.1]} 36. Kc3 {[%clk 0:00:10.5]} 36... Kh8 {[%clk 0:00:22.6]} 37.
Rad1 {[%clk 0:00:05]} 37... Qc7+ {[%clk 0:00:22.3]} 38. Kd2 {[%clk 0:00:04.2]}
38... Qxa5+ {[%clk 0:00:22.4]} 39. Ke3 {[%clk 0:00:04.2]} 39... Qg5+ {[%clk
0:00:19.7]} 40. Kd3 {[%clk 0:00:03.5]} 40... R2f7 {[%clk 0:00:09.3]} 41. Kc2
{[%clk 0:00:02]} 41... Rd8 {[%clk 0:00:06.9]} 0-1

[Event "Late-Titled-Tuesday-Blitz-March-05-2024"]
[Site "Chess.com"]
[Date "2024.03.05"]
[Round "3"]
[White "Chopper1905"]
[Black "Goryachkina"]
[Result "1-0"]
[WhiteElo "2966"]
[BlackElo "2707"]
[TimeControl "180+1"]
[EndTime "14:28:33 PST"]
[Termination "Chopper1905 won by checkmate"]

1. c4 {[%clk 0:03:00.9]} 1... Nf6 {[%clk 0:02:59.4]} 2. Nc3 {[%clk 0:03:00.3]}
2... c5 {[%clk 0:02:59.3]} 3. Nf3 {[%clk 0:02:59.9]} 3... Nc6 {[%clk 0:02:59.6]}
4. g3 {[%clk 0:02:55.1]} 4... g6 {[%clk 0:02:59.4]} 5. Bg2 {[%clk 0:02:54.5]}
5... Bg7 {[%clk 0:02:59.6]} 6. d4 {[%clk 0:02:54.8]} 6... cxd4 {[%clk
0:02:55.6]} 7. Nxd4 {[%clk 0:02:55.7]} 7... O-O {[%clk 0:02:53.9]} 8. O-O {[%clk
0:02:55.1]} 8... Qa5 {[%clk 0:02:52.7]} 9. e3 {[%clk 0:02:48.4]} 9... d6 {[%clk
0:02:05.1]} 10. Bd2 {[%clk 0:02:35.2]} 10... Nxd4 {[%clk 0:01:44.7]} 11. exd4
{[%clk 0:02:32.4]} 11... Qc7 {[%clk 0:01:41.5]} 12. b3 {[%clk 0:02:18.9]} 12...
Bg4 {[%clk 0:01:38.8]} 13. Qe1 {[%clk 0:02:11.4]} 13... Qd7 {[%clk 0:01:37.1]}
14. Rc1 {[%clk 0:02:08.4]} 14... Rfe8 {[%clk 0:01:36.5]} 15. Be3 {[%clk
0:02:04]} 15... Rac8 {[%clk 0:01:31.8]} 16. d5 {[%clk 0:02:01.7]} 16... b6
{[%clk 0:01:12.9]} 17. Qd2 {[%clk 0:02:01.4]} 17... Bh3 {[%clk 0:01:06.6]} 18.
Rfe1 {[%clk 0:01:58.9]} 18... Bxg2 {[%clk 0:00:59.7]} 19. Kxg2 {[%clk
0:01:59.8]} 19... Ng4 {[%clk 0:00:59.1]} 20. Bd4 {[%clk 0:01:56.4]} 20... h5
{[%clk 0:00:27.3]} 21. Bxg7 {[%clk 0:01:47.2]} 21... Kxg7 {[%clk 0:00:27.3]} 22.
Qd4+ {[%clk 0:01:26]} 22... Kg8 {[%clk 0:00:27.3]} 23. Rcd1 {[%clk 0:01:21.1]}
23... Qf5 {[%clk 0:00:26.5]} 24. Rd3 {[%clk 0:01:05.8]} 24... h4 {[%clk
0:00:23.4]} 25. f3 {[%clk 0:00:46.6]} 25... Ne5 {[%clk 0:00:20.7]} 26. Rde3
{[%clk 0:00:46.4]} 26... hxg3 {[%clk 0:00:10.9]} 27. hxg3 {[%clk 0:00:46.1]}
27... f6 {[%clk 0:00:05.6]} 28. Rh1 {[%clk 0:00:37.2]} 28... Kg7 {[%clk
0:00:05.3]} 29. g4 {[%clk 0:00:33.8]} 29... Qd7 {[%clk 0:00:04.9]} 30. Qf4
{[%clk 0:00:30.8]} 30... Rh8 {[%clk 0:00:04.8]} 31. Nb5 {[%clk 0:00:27.4]} 31...
g5 {[%clk 0:00:04.9]} 32. Qe4 {[%clk 0:00:24.6]} 32... Rxh1 {[%clk 0:00:04]} 33.
Kxh1 {[%clk 0:00:25.5]} 33... Rh8+ {[%clk 0:00:03.9]} 34. Kg1 {[%clk 0:00:25.3]}
34... e6 {[%clk 0:00:03]} 35. Nd4 {[%clk 0:00:24.5]} 35... exd5 {[%clk
0:00:03.3]} 36. Qxd5 {[%clk 0:00:23.1]} 36... Qf7 {[%clk 0:00:02.6]} 37. Qxd6
{[%clk 0:00:20.6]} 37... Qg6 {[%clk 0:00:02.3]} 38. Qe7+ {[%clk 0:00:19.7]}
38... Nf7 {[%clk 0:00:01.7]} 39. Ne6+ {[%clk 0:00:14.9]} 39... Kh6 {[%clk
0:00:01.9]} 40. Re2 {[%clk 0:00:13.3]} 40... Qb1+ {[%clk 0:00:02]} 41. Kg2
{[%clk 0:00:11.1]} 41... Ne5 {[%clk 0:00:02.1]} 42. Qg7# {[%clk 0:00:10.3]} 1-0

[Event "Late-Titled-Tuesday-Blitz-March-05-2024"]
[Site "Chess.com"]
[Date "2024.03.05"]
[Round "3"]
[White "kai_nov"]
[Black "Bugcrusher"]
[Result "1-0"]
[WhiteElo "2379"]
[BlackElo "2536"]
[TimeControl "180+1"]
[EndTime "14:28:35 PST"]
[Termination "kai_nov won by resignation"]

1. d4 {[%clk 0:03:00.9]} 1... e6 {[%clk 0:02:55.2]} 2. c4 {[%clk 0:03:00.6]}
2... Nf6 {[%clk 0:02:54.8]} 3. Nc3 {[%clk 0:03:00.4]} 3... Bb4 {[%clk
0:02:53.9]} 4. f3 {[%clk 0:03:00.6]} 4... O-O {[%clk 0:02:52.7]} 5. e4 {[%clk
0:02:58.6]} 5... d5 {[%clk 0:02:52.4]} 6. cxd5 {[%clk 0:02:56.8]} 6... exd5
{[%clk 0:02:51.3]} 7. e5 {[%clk 0:02:57.4]} 7... Nfd7 {[%clk 0:02:50.9]} 8. a3
{[%clk 0:02:50.7]} 8... Be7 {[%clk 0:02:40.2]} 9. Nxd5 {[%clk 0:02:37.3]} 9...
c5 {[%clk 0:02:38.1]} 10. f4 {[%clk 0:02:36.3]} 10... cxd4 {[%clk 0:02:36.7]}
11. Nxe7+ {[%clk 0:02:30.3]} 11... Qxe7 {[%clk 0:02:36.1]} 12. Nf3 {[%clk
0:02:31.2]} 12... Nc6 {[%clk 0:02:35.3]} 13. b4 {[%clk 0:02:18.7]} 13... f6
{[%clk 0:02:29.3]} 14. b5 {[%clk 0:02:17]} 14... Na5 {[%clk 0:02:09.2]} 15. Qxd4
{[%clk 0:01:30.7]} 15... fxe5 {[%clk 0:01:58.2]} 16. fxe5 {[%clk 0:01:30.6]}
16... Rxf3 {[%clk 0:01:51.2]} 17. gxf3 {[%clk 0:01:30.1]} 17... Nxe5 {[%clk
0:01:51.2]} 18. Kf2 {[%clk 0:01:19.3]} 18... Nb3 {[%clk 0:01:45.3]} 19. Qe4
{[%clk 0:00:06.4]} 19... Nxa1 {[%clk 0:01:42.2]} 20. Bb2 {[%clk 0:00:05]} 20...
Ng4+ {[%clk 0:01:36.6]} 21. Kg3 {[%clk 0:00:04.8]} 21... Qd6+ {[%clk 0:01:33.5]}
22. Qf4 {[%clk 0:00:04.5]} 22... Qxf4+ {[%clk 0:01:32.8]} 23. Kxf4 {[%clk
0:00:04.8]} 23... Nf2 {[%clk 0:01:31.3]} 24. Bc4+ {[%clk 0:00:04.2]} 24... Kf8
{[%clk 0:01:28.3]} 25. Rxa1 {[%clk 0:00:04.2]} 25... Nh3+ {[%clk 0:01:25.8]} 26.
Kg3 {[%clk 0:00:04.5]} 26... Ng5 {[%clk 0:01:25.8]} 27. Rd1 {[%clk 0:00:04.4]}
27... Be6 {[%clk 0:01:24.1]} 28. Bxe6 {[%clk 0:00:03.8]} 28... Nxe6 {[%clk
0:01:22.7]} 29. a4 {[%clk 0:00:04.7]} 29... Rd8 {[%clk 0:01:21.7]} 30. Ba3+
{[%clk 0:00:04.8]} 30... Kf7 {[%clk 0:01:20.9]} 31. Rxd8 {[%clk 0:00:03.9]}
31... Nxd8 {[%clk 0:01:21]} 32. Kf4 {[%clk 0:00:04.6]} 32... Ke6 {[%clk
0:01:18.8]} 33. Ke4 {[%clk 0:00:04.7]} 33... Nf7 {[%clk 0:01:18.5]} 34. Bc5
{[%clk 0:00:04.3]} 34... a6 {[%clk 0:01:17.7]} 35. bxa6 {[%clk 0:00:04.7]} 35...
bxa6 {[%clk 0:01:16.7]} 36. f4 {[%clk 0:00:05.2]} 36... g6 {[%clk 0:01:16]} 37.
h3 {[%clk 0:00:05.4]} 37... Nh6 {[%clk 0:01:15.9]} 38. Bd4 {[%clk 0:00:04.3]}
38... Nf5 {[%clk 0:01:15.8]} 39. Bf2 {[%clk 0:00:04.4]} 39... Kd6 {[%clk
0:01:13.7]} 40. Bb6 {[%clk 0:00:03.5]} 40... Ke6 {[%clk 0:01:13.1]} 41. Bc7
{[%clk 0:00:03.2]} 41... Ne7 {[%clk 0:01:11.9]} 42. Be5 {[%clk 0:00:03.2]} 42...
Nc6 {[%clk 0:01:10.8]} 43. Bc7 {[%clk 0:00:03.6]} 43... Nb4 {[%clk 0:01:08.8]}
44. Kd4 {[%clk 0:00:03.3]} 44... Kf5 {[%clk 0:01:06]} 45. Kc5 {[%clk 0:00:03.1]}
45... Nd3+ {[%clk 0:01:05.9]} 46. Kb6 {[%clk 0:00:03.2]} 46... Nxf4 {[%clk
0:01:05.5]} 47. Bxf4 {[%clk 0:00:03.3]} 47... Kxf4 {[%clk 0:01:05.6]} 48. Kxa6
{[%clk 0:00:04.2]} 48... Kg3 {[%clk 0:01:04.8]} 49. Kb6 {[%clk 0:00:03.9]} 49...
Kxh3 {[%clk 0:01:04.8]} 50. a5 {[%clk 0:00:04.8]} 50... g5 {[%clk 0:01:05.3]}
51. a6 {[%clk 0:00:05.7]} 51... g4 {[%clk 0:01:05.8]} 52. a7 {[%clk 0:00:06.6]}
52... g3 {[%clk 0:01:05.4]} 53. a8=Q {[%clk 0:00:07.5]} 53... g2 {[%clk
0:01:05.8]} 54. Qf3+ {[%clk 0:00:06.3]} 54... Kh2 {[%clk 0:01:04.8]} 55. Qh5+
{[%clk 0:00:06.5]} 55... Kg1 {[%clk 0:01:04.3]} 56. Qxh7 {[%clk 0:00:07.2]}
56... Kf1 {[%clk 0:01:04.1]} 57. Qf5+ {[%clk 0:00:07.7]} 57... Kg1 {[%clk
0:01:04.3]} 58. Kc5 {[%clk 0:00:06.7]} 58... Kh2 {[%clk 0:01:01.5]} 59. Qh5+
{[%clk 0:00:06.9]} 59... Kg3 {[%clk 0:01:00.7]} 60. Qg5+ {[%clk 0:00:07.3]}
60... Kh3 {[%clk 0:01:00.8]} 61. Kd4 {[%clk 0:00:06.9]} 61... Kh2 {[%clk
0:00:57.2]} 62. Qh4+ {[%clk 0:00:07.2]} 62... Kg1 {[%clk 0:00:57.3]} 63. Ke3
{[%clk 0:00:06.8]} 1-0